bitfinex/quotes_ETHUSD_20230403
["timestamp","ask_amount","ask_price","bid_price","bid_amount"]
[1680510357585,0.11000001,1814.0,1813.9,0.99893]
[1680510357890,0.11000001,1814.0,1813.9,9.58669728]
[1680510358104,0.11000001,1814.0,1813.9,6.80549357]
[1680510358509,0.11000001,1814.0,1813.9,1.00093]
[1680510358656,0.11000001,1814.0,1813.9,0.99893]
[1680510358855,0.11000001,1814.0,1813.9,9.58669728]
[1680510359098,0.11000001,1814.0,1813.9,9.58869728]
[1680510363500,0.11000001,1814.0,1813.9,22.64969728]
[1680510363686,0.11000001,1814.0,1813.9,27.38981309]
[1680510364496,0.11000001,1814.0,1813.9,27.67492068]
[1680510365201,0.11000001,1814.0,1813.9,7.36235495]
[1680510365360,0.11000001,1814.0,1813.9,6.80093]
[1680510365793,0.11000001,1814.0,1813.9,1.00093]
[1680510365995,0.11000001,1814.0,1813.7,0.44967]
[1680510366201,0.11000001,1814.0,1813.7,0.172]
[1680510366359,3.108,1813.8,1813.5,0.172]
[1680510366566,3.119,1813.6,1813.3,0.002]
[1680510366797,3.26284,1813.6,1813.2,0.172]
[1680510367051,3.26284,1813.6,1813.1,0.73342495]
[1680510367317,1.0,1813.3,1813.1,0.73342495]
[1680510367617,1.0,1813.1,1812.9,0.002]
[1680510367822,2.79376728,1813.1,1812.7,0.56342495]
[1680510367959,2.79376728,1813.1,1812.6,0.1]
[1680510367960,1.0,1812.9,1812.6,0.1]
[1680510368164,1.31939166,1812.9,1812.6,0.1]
[1680510368606,1.33830823,1812.9,1812.6,0.1]
[1680510370477,3.127,1812.7,1812.6,0.1]
[1680510370679,6.16206879,1812.7,1812.6,0.1]
[1680510370880,6.30197879,1812.7,1812.6,0.1]
[1680510371082,6.93217667,1812.7,1812.6,0.1]
[1680510371306,6.79426667,1812.7,1812.6,0.1]
[1680510372482,6.93217667,1812.7,1812.6,0.1]
[1680510372685,6.93217667,1812.7,1812.4,0.1]
[1680510372990,2.127,1812.5,1812.4,0.1]
[1680510373191,6.54255895,1812.5,1812.4,0.1]
[1680510373396,6.54455895,1812.5,1812.4,0.1]
[1680510373594,9.77455895,1812.5,1812.4,0.1]
[1680510373795,9.63662895,1812.5,1812.4,0.1]
[1680510374009,9.77455895,1812.5,1812.4,0.1]
[1680510374578,9.77455895,1812.5,1812.2,0.1]
[1680510374579,0.99838494,1812.3,1812.2,0.1]
[1680510374778,6.28099071,1812.3,1812.2,0.1]
[1680510374993,6.42093071,1812.3,1812.2,0.1]
[1680510375196,6.28299071,1812.3,1812.2,0.1]
[1680510375396,6.42093071,1812.3,1812.2,0.1]
[1680510375575,6.28299071,1812.3,1812.2,0.1]
[1680510376681,6.30190728,1812.3,1812.2,0.1]
[1680510377105,0.002,1812.3,1812.2,0.1]
[1680510377304,2.115,1812.6,1812.2,0.1]
[1680510377504,2.78776728,1812.5,1812.2,0.1]
[1680510377707,2.117,1812.6,1812.2,0.1]
[1680510378009,2.115,1812.6,1812.2,0.1]
[1680510378210,2.3265,1812.6,1812.2,0.1]
[1680510379317,5.11426728,1812.6,1812.2,0.1]
[1680510379503,5.13518385,1812.6,1812.2,0.1]
[1680510379685,2.108,1812.3,1812.2,0.1]
[1680510380085,3.78815222,1812.5,1812.2,0.1]
[1680510380086,2.119,1812.4,1812.2,0.1]
[1680510380776,0.002,1812.5,1812.2,0.1]
[1680510380976,4.14229494,1812.7,1812.3,5.8]
[1680510380977,0.002,1812.7,1812.3,5.8]
[1680510381188,2.27089,1813.0,1812.3,0.002]
[1680510381393,2.26489,1813.0,1812.4,0.172]
[1680510381592,2.78776728,1812.9,1812.3,0.172]
[1680510381910,2.78776728,1812.9,1812.4,0.27587]
[1680510382113,2.78776728,1812.9,1812.4,0.44787]
[1680510382328,3.39739907,1812.9,1812.4,0.44787]
[1680510382533,2.127,1812.8,1812.4,0.172]
[1680510382736,2.127,1812.8,1812.2,0.272]
[1680510382737,2.78776728,1812.7,1812.2,0.272]
[1680510382901,0.01891657,1812.6,1812.2,0.1]
[1680510383781,2.80668385,1812.6,1812.2,0.1]
[1680510383983,0.28066839,1812.5,1812.2,0.1]
[1680510384188,2.78776728,1812.4,1812.2,0.1]
[1680510384443,0.23,1812.3,1812.2,0.1]
[1680510387433,2.11,1812.4,1812.2,0.1]
[1680510387610,0.28266839,1812.5,1812.2,0.1]
[1680510387824,0.28066839,1812.5,1812.2,0.3759]
[1680510388125,6.91981,1812.8,1812.2,0.3759]
[1680510388285,2.78776728,1812.7,1812.2,0.3759]
[1680510389020,2.13491657,1812.8,1812.2,0.92771]
[1680510389221,4.92068385,1812.8,1812.2,1.10427785]
[1680510389422,4.92068385,1812.8,1812.2,0.93227785]
[1680510389592,2.13291657,1812.8,1812.3,0.172]
[1680510389793,2.13291657,1812.8,1812.4,0.82759]
[1680510389794,2.114,1812.8,1812.4,0.82759]
[1680510390002,0.01891657,1812.9,1812.3,0.17656759]
[1680510390298,0.01891657,1812.9,1812.3,1.00421759]
[1680510390922,0.01891657,1812.9,1812.3,6.80421759]
[1680510391128,0.01891657,1812.9,1812.4,0.172]
[1680510391325,0.01891657,1812.9,1812.5,0.27585]
[1680510391824,0.01891657,1812.9,1812.5,0.82757]
[1680510392837,11.79846,1813.4,1812.6,0.172]
[1680510393005,2.78776728,1813.3,1812.8,0.27581]
[1680510393348,0.27877673,1813.2,1812.8,0.44781]
[1680510393553,3.06654401,1813.2,1812.8,0.99944]
[1680510393751,0.27877673,1813.2,1812.8,0.99944]
[1680510394047,2.133,1813.4,1812.8,0.82744]
[1680510394048,2.127,1813.4,1812.8,0.82744]
[1680510394246,4.91476728,1813.4,1812.8,0.82744]
[1680510395261,5.05262728,1813.4,1812.8,0.82744]
[1680510395463,5.05250709,1813.4,1812.8,0.27781]
[1680510395672,2.12687981,1813.4,1812.8,0.83344]
[1680510395822,2.12487981,1813.4,1812.8,0.99944]
[1680510396016,2.12487981,1813.4,1812.8,1.00544]
[1680510396451,2.14379638,1813.4,1812.8,0.72763]
[1680510396745,4.93756366,1813.4,1812.8,1.00400634]
[1680510396957,5.07542366,1813.4,1812.8,1.00400634]
[1680510397113,5.07542366,1813.4,1812.8,0.17656634]
[1680510397114,0.50754237,1813.3,1812.8,0.17656634]
[1680510397318,0.51354237,1813.3,1812.8,0.45237634]
[1680510397749,5.14468385,1813.2,1812.8,0.27581]
[1680510397952,5.15268385,1813.2,1812.8,0.27581]
[1680510398123,0.51526838,1813.1,1812.8,0.27581]
[1680510398318,0.51526838,1813.1,1812.7,0.27581]
[1680510398547,2.78776728,1813.1,1812.6,0.27584]
[1680510398859,0.006,1813.1,1812.6,0.99953]
[1680510399043,2.12691657,1813.2,1812.6,0.99953]
[1680510399241,2.12691657,1813.2,1812.6,0.82753]
[1680510399443,2.13291657,1813.2,1812.6,0.99953]
[1680510399656,2.34620823,1813.2,1812.6,0.99953]
[1680510399832,2.34620823,1813.2,1812.7,0.172]
[1680510400018,2.34620823,1813.2,1812.8,0.2758]
[1680510400216,2.34620823,1813.2,1812.8,0.82743]
[1680510400726,2.34020823,1813.2,1812.8,1.93069]
[1680510400919,2.34620823,1813.2,1812.8,1.93069]
[1680510401120,0.006,1813.2,1812.8,1.93069]
[1680510401321,5.0079,1813.4,1812.8,1.93069]
[1680510401322,0.006,1813.3,1812.8,1.93069]
[1680510401548,0.006,1813.5,1812.8,10.51845728]
[1680510401745,0.006,1813.5,1813.0,5.8]
[1680510401967,0.006,1813.5,1813.1,0.82728]
[1680510402122,0.006,1813.6,1813.1,0.99928]
[1680510402314,0.002,1813.6,1813.1,0.44776]
[1680510402619,2.38084001,1813.7,1813.1,0.44776]
[1680510402849,5.03076729,1813.7,1813.1,0.9993]
[1680510403038,0.50307673,1813.6,1813.1,0.9993]
[1680510403236,0.5279933,1813.6,1813.1,0.8273]
[1680510403443,3.31576058,1813.6,1813.1,0.8273]
[1680510404142,2.78776728,1813.5,1813.1,0.27576]
[1680510404478,2.14591657,1813.4,1812.9,0.27579]
[1680510404651,3.23235894,1813.3,1812.9,0.27579]
[1680510404955,0.22059166,1813.3,1812.9,0.82739]
[1680510405117,0.01891657,1813.4,1812.9,0.82739]
[1680510405733,0.006,1813.4,1813.0,0.00456584]
[1680510405911,0.006,1813.4,1813.1,0.27576]
[1680510406339,0.006,1813.5,1813.1,0.27576]
[1680510407656,0.006,1813.5,1813.2,0.00456533]
[1680510407821,0.006,1813.6,1813.3,0.82722]
[1680510408019,0.11600001,1813.7,1813.3,0.82722]
[1680510408252,0.11000001,1813.7,1813.3,6.62722]
[1680510408460,0.11000001,1813.7,1813.4,0.17656482]
[1680510408654,0.11000001,1813.7,1813.5,0.2757]
[1680510408815,0.11000001,1813.7,1813.5,0.82711]
[1680510409215,0.11000001,1813.7,1813.5,0.99911]
[1680510409749,0.11000001,1813.7,1813.5,6.79911]
[1680510409914,0.11000001,1813.7,1813.5,6.80111]
[1680510410756,0.11000001,1813.7,1813.5,1.00111]
[1680510410919,0.11000001,1813.7,1813.5,0.99911]
[1680510412081,0.11000001,1813.7,1813.5,6.79911]
[1680510412232,0.11000001,1813.7,1813.5,6.80111]
[1680510413726,0.11000001,1813.7,1813.6,0.172]
[1680510413927,0.11000001,1813.7,1813.6,0.99907]
[1680510414549,0.11000001,1813.7,1813.6,1.00107]
[1680510414550,0.06000001,1813.7,1813.6,1.00107]
[1680510414735,0.06000001,1813.7,1813.6,0.99907]
[1680510418465,0.06000001,1813.7,1813.6,8.91663433]
[1680510418763,0.06000001,1813.7,1813.6,8.91863433]
[1680510420072,0.11000001,1813.9,1813.8,5.8]
[1680510420227,0.11000001,1813.9,1813.8,15.40760109]
[1680510420555,0.11000001,1813.9,1813.8,15.57960109]
[1680510420739,0.11000001,1813.9,1813.8,19.57960109]
[1680510421569,0.11000001,1813.9,1813.8,18.57960109]
[1680510424678,0.11000001,1813.9,1813.8,25.69760109]
[1680510426439,0.11000001,1813.9,1813.8,25.92760109]
[1680510428342,0.11000001,1813.9,1813.8,26.92760109]
[1680510428537,0.11000001,1813.9,1813.8,6.80098]
[1680510428740,0.11000001,1813.9,1813.8,0.44966]
[1680510428932,0.11000001,1813.9,1813.8,6.79898]
[1680510429134,0.11000001,1813.9,1813.8,6.80098]
[1680510429376,0.11000001,1813.9,1813.8,6.62898]
[1680510429553,0.11000001,1813.9,1813.8,0.002]
[1680510429755,0.11000001,1813.9,1813.7,0.174]
[1680510430071,0.11000001,1813.9,1813.5,0.172]
[1680510430275,0.11000001,1813.9,1813.5,0.99911]
[1680510430475,0.11000001,1813.9,1813.5,6.79911]
[1680510430632,0.11000001,1813.9,1813.5,0.174]
[1680510430839,0.11000001,1813.9,1813.5,0.172]
[1680510431060,0.52346001,1813.9,1813.4,0.174]
[1680510431269,0.31116601,1813.9,1813.4,0.172]
[1680510431573,0.15674657,1813.8,1813.3,5.972]
[1680510431782,2.78776728,1813.7,1813.3,0.002]
[1680510431936,2.78776728,1813.7,1813.1,0.178]
[1680510431937,2.92559728,1813.7,1813.2,0.44774]
[1680510432135,0.3114763,1813.6,1813.2,0.172]
[1680510432361,0.7250163,1813.6,1813.1,0.172]
[1680510432562,0.7250163,1813.6,1813.0,10.8752]
[1680510432880,3.23709358,1813.6,1813.0,0.44978]
[1680510433175,3.09924358,1813.6,1813.1,0.172]
[1680510433384,0.30992436,1813.5,1813.1,0.44775]
[1680510433576,0.01891657,1813.6,1813.1,0.44775]
[1680510434662,0.01891657,1813.6,1813.1,0.99929]
[1680510434870,0.01891657,1813.6,1813.2,0.17656533]
[1680510435074,0.01891657,1813.6,1813.3,10.97149728]
[1680510435245,0.11600001,1813.9,1813.5,7.927]
[1680510435445,0.11000001,1813.9,1813.7,5.8]
[1680510435658,0.11000001,1813.9,1813.8,0.27566]
[1680510435659,0.11600001,1813.9,1813.8,0.27566]
[1680510435974,0.11000001,1813.9,1813.8,0.99898]
[1680510436176,0.11000001,1813.9,1813.8,0.172]
[1680510436391,0.11000001,1813.9,1813.8,0.44766]
[1680510436691,0.11000001,1813.9,1813.8,6.80354381]
[1680510436844,0.11000001,1813.9,1813.8,6.80554381]
[1680510437041,0.11000001,1813.9,1813.8,9.59331109]
[1680510437663,0.11000001,1813.9,1813.8,11.71931109]
[1680510437959,0.11000001,1813.9,1813.8,9.59331109]
[1680510438160,0.11000001,1813.9,1813.8,12.59331109]
[1680510438381,0.11000001,1813.9,1813.8,9.80554381]
[1680510440285,0.11000001,1813.9,1813.8,4.00554381]
[1680510440463,0.11000001,1813.9,1813.8,3.99898]
[1680510440657,0.11000001,1813.9,1813.8,12.58674728]
[1680510440894,0.11000001,1813.9,1813.8,12.58874728]
[1680510442422,0.11000001,1813.9,1813.8,9.80098]
[1680510442725,0.11000001,1813.9,1813.8,12.58874728]
[1680510442925,0.11000001,1813.9,1813.8,14.70374728]
[1680510443124,0.11000001,1813.9,1813.8,14.70831109]
[1680510444316,0.10727984,1813.9,1813.8,14.70831109]
[1680510444627,0.10727984,1813.9,1813.8,14.70547264]
[1680510444826,0.10727984,1813.9,1813.8,11.91770536]
[1680510445026,0.10727984,1813.9,1813.8,12.59047264]
[1680510445428,0.10727984,1813.9,1813.8,4.00270536]
[1680510445620,0.10727984,1813.9,1813.8,9.79614155]
[1680510445818,0.10727984,1813.9,1813.8,9.79814155]
[1680510446630,0.10727984,1813.9,1813.8,12.58590883]
[1680510450128,0.10727984,1813.9,1813.8,14.71290883]
[1680510451734,0.10727984,1813.9,1813.8,12.58590883]
[1680510451933,0.10727984,1813.9,1813.8,9.79814155]
[1680510452365,0.10727984,1813.9,1813.8,11.25190883]
[1680510452527,0.10727984,1813.9,1813.8,14.36388883]
[1680510454236,0.10727984,1813.9,1813.8,9.46312155]
[1680510455265,0.10727984,1813.9,1813.8,14.36588883]
[1680510456038,0.10727984,1813.9,1813.8,14.27988883]
[1680510457374,0.10727984,1813.9,1813.8,0.27766]
[1680510457592,0.10727984,1813.9,1813.5,0.002]
[1680510457593,2.23427984,1813.9,1813.5,0.002]
[1680510457775,2.23427984,1813.9,1813.5,0.086]
[1680510457776,0.99838494,1813.7,1813.5,0.086]
[1680510457982,0.99838494,1813.7,1813.2,0.78186895]
[1680510457983,0.99838494,1813.5,1813.2,0.220444]
[1680510458147,0.09983849,1813.4,1813.2,0.220444]
[1680510458352,2.21883849,1813.4,1813.2,0.220444]
[1680510459983,0.99838494,1813.3,1813.2,0.220444]
[1680510460364,3.27417151,1813.3,1813.2,0.220444]
[1680510460557,3.28017151,1813.3,1813.2,0.220444]
[1680510460886,3.64594451,1813.3,1813.2,0.220444]
[1680510461246,6.64594451,1813.3,1813.2,0.220444]
[1680510461452,6.64794451,1813.3,1813.2,0.220444]
[1680510465308,9.94145179,1813.3,1813.2,0.220444]
[1680510465810,6.92368451,1813.3,1813.2,0.220444]
[1680510466212,9.94145179,1813.3,1813.2,0.220444]
[1680510468564,17.94145179,1813.3,1813.2,0.220444]
[1680510469027,9.94145179,1813.3,1813.2,0.220444]
[1680510470822,9.66571179,1813.3,1813.2,0.220444]
[1680510471034,0.008,1813.3,1813.2,0.22500933]
[1680510471235,0.24369849,1813.4,1813.2,0.220444]
[1680510471712,3.11738494,1813.3,1813.2,0.220444]
[1680510471910,3.53099494,1813.3,1813.2,0.220444]
[1680510472345,3.53699494,1813.3,1813.2,0.220444]
[1680510472499,7.77379056,1813.3,1813.2,0.220444]
[1680510472834,7.77379056,1813.3,1812.7,0.1]
[1680510472835,0.99838494,1813.0,1812.7,0.1]
[1680510472997,0.1379,1812.9,1812.7,0.1]
[1680510473579,2.2529,1812.9,1812.7,0.1]
[1680510473807,2.115,1812.9,1812.7,0.1]
[1680510474024,2.46770549,1812.9,1812.7,0.1]
[1680510474985,2.60560549,1812.9,1812.7,0.1]
[1680510475183,3.03668385,1812.8,1812.7,0.1]
[1680510475736,0.01891657,1812.8,1812.7,0.1]
[1680510475885,2.13791657,1812.8,1812.7,0.1]
[1680510476085,0.01891657,1812.8,1812.7,0.1]
[1680510476305,0.26877878,1812.8,1812.7,0.1]
[1680510476800,0.99838494,1813.0,1812.7,0.1]
[1680510477209,3.12538494,1813.1,1812.7,0.1]
[1680510477418,3.12538494,1813.1,1812.7,0.37583]
[1680510477787,2.127,1813.1,1812.7,0.37583]
[1680510478341,0.002,1813.2,1812.8,0.09056634]
[1680510478502,3.33302834,1813.3,1812.8,0.36636634]
[1680510478704,2.114,1813.3,1812.8,0.91799634]
[1680510479427,4.91476728,1813.2,1812.8,0.27581]
[1680510480156,2.127,1813.2,1812.8,0.82744]
[1680510480719,0.002,1813.4,1812.8,0.82744]
[1680510481064,6.8954,1813.5,1813.0,0.82733]
[1680510481065,2.121,1813.5,1813.0,0.82733]
[1680510481231,0.2121,1813.4,1813.0,0.82733]
[1680510481828,0.002,1813.5,1813.1,0.086]
[1680510482033,4.7883,1813.7,1813.2,0.82725]
[1680510482243,2.122,1813.8,1813.2,0.82725]
[1680510482442,3.24338495,1814.0,1813.3,0.086]
[1680510482657,3.24138495,1814.0,1813.4,0.82714]
[1680510482862,0.44234632,1813.9,1813.4,0.82714]
[1680510483032,0.10727984,1813.9,1813.4,6.62714]
[1680510483358,0.10727984,1813.9,1813.5,0.086]
[1680510483530,0.10727984,1813.9,1813.6,0.82707]
[1680510483730,0.10727984,1813.9,1813.5,0.086]
[1680510484064,0.10727984,1813.9,1813.5,0.36169]
[1680510484352,0.10727984,1813.9,1813.6,0.086]
[1680510484552,0.10727984,1813.9,1813.7,0.27567]
[1680510484921,0.10727984,1813.9,1813.7,0.82702]
[1680510485625,0.10727984,1813.9,1813.7,1.92973]
[1680510486234,0.10727984,1813.9,1813.7,2.01573]
[1680510486433,0.10727984,1813.9,1813.8,0.086]
[1680510486764,0.10727984,1813.9,1813.8,6.71298]
[1680510486925,0.10727984,1813.9,1813.8,6.71498]
[1680510488095,0.10727984,1813.9,1813.8,8.84198]
[1680510488265,0.10727984,1813.9,1813.8,8.84654381]
[1680510489073,0.10727984,1813.9,1813.8,11.63431109]
[1680510490209,0.10727984,1813.9,1813.8,9.50731109]
[1680510490385,0.10727984,1813.9,1813.8,9.51331109]
[1680510490975,0.10727984,1813.9,1813.8,12.51331109]
[1680510492204,0.10727984,1813.9,1813.8,14.63931109]
[1680510495614,0.10727984,1813.9,1813.8,13.13331109]
[1680510495908,0.10727984,1813.9,1813.8,14.04629109]
[1680510499179,0.10727984,1813.9,1813.8,14.00229109]
[1680510500802,0.10727984,1813.9,1813.8,11.21452381]
[1680510501001,0.10727984,1813.9,1813.8,9.08396]
[1680510501513,0.10727984,1813.9,1813.8,0.87098]
[1680510501719,0.10727984,1813.9,1813.8,6.11766]
[1680510502012,0.10727984,1813.9,1813.8,6.67098]
[1680510502821,0.10727984,1813.9,1813.8,0.044]
[1680510502982,0.10727984,1813.9,1813.8,0.31766]
[1680510503179,0.10727984,1813.9,1813.8,0.82698]
[1680510503383,0.10727984,1813.9,1813.8,0.86898]
[1680510503913,0.10727984,1813.9,1813.8,0.31766]
[1680510504111,0.10727984,1813.9,1813.8,0.042]
[1680510504418,0.10727984,1813.9,1813.8,0.31766]
[1680510504619,0.24509984,1813.9,1813.5,10.002]
[1680510504820,1.216,1813.8,1813.5,10.002]
[1680510505021,1.222,1813.8,1813.5,10.002]
[1680510505223,1.35983,1813.8,1813.5,10.002]
[1680510505424,1.35983,1813.8,1813.5,0.002]
[1680510505586,1.35983,1813.8,1813.2,0.31774]
[1680510506340,0.10727984,1813.9,1813.6,11.73183]
[1680510506511,0.10727984,1813.9,1813.7,0.042]
[1680510506712,0.10727984,1813.9,1813.8,0.82698]
[1680510507238,0.10727984,1813.9,1813.8,0.86898]
[1680510508515,0.10727984,1813.9,1813.6,0.002]
[1680510508714,2.128,1813.7,1813.3,0.31772]
[1680510508918,0.2128,1813.6,1813.3,0.86919]
[1680510509241,0.2128,1813.6,1813.3,0.27572]
[1680510509538,0.2128,1813.6,1813.3,0.31772]
[1680510510303,0.2128,1813.6,1813.3,0.042]
[1680510510816,0.2128,1813.6,1813.2,0.31774]
[1680510511816,0.2128,1813.6,1813.2,0.042]
[1680510512334,2.134,1813.7,1813.2,0.31775]
[1680510512642,4.92176728,1813.7,1813.2,0.31775]
[1680510512865,0.006,1813.7,1813.3,0.27573]
[1680510513206,0.006,1813.7,1813.3,0.86921]
[1680510513422,0.006,1813.7,1813.3,0.82721]
[1680510513640,0.006,1813.7,1813.4,5.8]
[1680510513849,0.006,1813.7,1813.5,0.2757]
[1680510514228,0.006,1813.7,1813.5,0.86911]
[1680510514767,0.006,1813.7,1813.5,0.042]
[1680510514965,0.006,1813.8,1813.5,0.3177]
[1680510515262,0.11327984,1813.9,1813.5,0.3177]
[1680510515432,0.11327984,1813.9,1813.5,0.86911]
[1680510515761,0.11327984,1813.9,1813.5,0.82711]
[1680510515945,0.10727984,1813.9,1813.7,0.82702]
[1680510516147,0.11327984,1813.9,1813.7,0.82702]
[1680510516347,0.11127984,1813.9,1813.7,0.82702]
[1680510516671,0.10727984,1813.9,1813.7,0.82702]
[1680510519385,0.10727984,1813.9,1813.7,0.27567]
[1680510519755,2.89504712,1813.9,1813.5,0.042]
[1680510520075,0.28950471,1813.8,1813.7,0.27567]
[1680510520282,0.28950471,1813.8,1813.7,0.82702]
[1680510520463,0.28950471,1813.8,1813.4,1.10744482]
[1680510520666,2.78776728,1813.7,1813.4,0.00456482]
[1680510520869,2.78776728,1813.7,1813.2,30.238]
[1680510520870,6.04224793,1813.7,1813.2,30.238]
[1680510521182,0.83422479,1813.6,1813.2,0.008]
[1680510521380,0.83422479,1813.6,1813.1,0.27576]
[1680510521564,0.83422479,1813.6,1813.1,0.27575]
[1680510521953,0.97206479,1813.6,1813.0,0.59356]
[1680510522156,2.95322479,1813.6,1813.1,0.27576]
[1680510522381,0.29532248,1813.5,1813.1,0.27576]
[1680510522746,0.60622479,1813.6,1813.1,0.8693]
[1680510522942,9.7613,1813.8,1813.1,0.8273]
[1680510523144,0.008,1813.8,1813.3,8.928]
[1680510523390,0.10727984,1813.9,1813.5,1.9299]
[1680510523593,0.10727984,1813.9,1813.5,7.7299]
[1680510523789,0.10727984,1813.9,1813.6,0.042]
[1680510523940,0.10727984,1813.9,1813.7,1.92973]
[1680510524407,0.10727984,1813.9,1813.8,0.042]
[1680510524701,0.10727984,1813.9,1813.8,0.86898]
[1680510530212,0.10727984,1813.9,1813.8,0.31766]
[1680510530573,0.10727984,1813.9,1813.6,0.59338]
[1680510530776,0.10727984,1813.9,1813.6,0.31768]
[1680510530777,1.10566478,1813.9,1813.6,0.31768]
[1680510531009,0.23073798,1813.9,1813.6,0.86906]
[1680510531226,0.10727984,1813.9,1813.6,0.86906]
[1680510531437,0.10727984,1813.9,1813.6,0.82706]
[1680510531613,0.10727984,1813.9,1813.7,0.042]
[1680510531791,0.10727984,1813.9,1813.7,0.31766]
[1680510531991,0.10727984,1813.9,1813.7,0.86901]
[1680510532583,0.10727984,1813.9,1813.7,0.82701]
[1680510533026,0.10727984,1813.9,1813.7,0.86901]
[1680510533997,0.10727984,1813.9,1813.6,6.90473]
[1680510534295,0.10727984,1813.9,1813.7,0.84901]
[1680510534691,0.10727984,1813.9,1813.8,5.8]
[1680510534891,0.10727984,1813.9,1813.8,6.65098]
[1680510536628,0.10727984,1813.9,1813.8,0.85098]
[1680510536833,0.10727984,1813.9,1813.8,0.84898]
[1680510537535,0.10727984,1813.9,1813.7,0.022]
[1680510538057,0.10727984,1813.9,1813.7,0.27567]
[1680510538257,0.10727984,1813.9,1813.7,6.64902]
[1680510538426,0.10727984,1813.9,1813.7,0.82902]
[1680510538754,0.10727984,1813.9,1813.7,0.82702]
[1680510538913,0.10727984,1813.9,1813.7,0.84902]
[1680510539610,0.10727984,1813.9,1813.7,0.29767]
[1680510541053,0.10727984,1813.9,1813.7,0.022]
[1680510541420,0.10727984,1813.9,1813.7,0.29767]
[1680510541621,0.10727984,1813.9,1813.7,0.022]
[1680510542257,0.10727984,1813.9,1813.5,0.2977]
[1680510542571,0.10727984,1813.9,1813.6,0.022]
[1680510542782,0.10727984,1813.9,1813.6,0.29768]
[1680510543130,0.10727984,1813.9,1813.7,0.022]
[1680510543321,0.10727984,1813.9,1813.7,0.29766]
[1680510543723,0.10727984,1813.9,1813.7,0.022]
[1680510543924,0.10727984,1813.9,1813.7,0.29767]
[1680510544145,0.10727984,1813.9,1813.7,0.022]
[1680510544367,0.10727984,1813.9,1813.5,0.022]
[1680510544677,0.10727984,1813.9,1813.5,0.2757]
[1680510545259,0.13076074,1813.9,1813.6,0.022]
[1680510545442,0.13076074,1813.9,1813.4,10.002]
[1680510545670,0.13076074,1813.9,1813.4,10.27771]
[1680510545827,3.01776728,1813.8,1813.4,10.29972]
[1680510546028,3.33262008,1813.8,1813.4,10.29972]
[1680510546287,3.33862008,1813.8,1813.4,10.29972]
[1680510546643,3.33862008,1813.8,1813.4,10.024]
[1680510546860,3.33862008,1813.8,1813.4,10.29972]
[1680510547023,3.33862008,1813.8,1813.5,0.022]
[1680510547223,0.006,1813.8,1813.5,0.2977]
[1680510547430,0.13076074,1813.9,1813.5,0.2977]
[1680510547863,0.13076074,1813.9,1813.5,0.84911]
[1680510548661,0.13076074,1813.9,1813.4,10.002]
[1680510548662,2.119,1813.7,1813.4,10.002]
[1680510548869,0.4419,1813.6,1813.4,0.002]
[1680510549164,0.4419,1813.6,1813.3,0.30373]
[1680510549165,0.4419,1813.6,1813.3,0.29773]
[1680510550053,3.22966728,1813.6,1813.3,0.29773]
[1680510550253,3.23566728,1813.6,1813.3,0.29773]
[1680510550444,0.32356673,1813.5,1813.3,0.29773]
[1680510550776,3.11133401,1813.5,1813.3,0.022]
[1680510550941,0.32356673,1813.5,1813.3,0.82721]
[1680510551133,0.4419,1813.6,1813.3,0.82721]
[1680510551335,3.22966728,1813.6,1813.3,0.82721]
[1680510551559,0.4419,1813.6,1813.3,0.82721]
[1680510551757,2.23427984,1813.9,1813.3,0.82721]
[1680510551927,3.01776728,1813.8,1813.3,0.82721]
[1680510552128,3.02376728,1813.8,1813.3,0.82721]
[1680510553156,3.02376728,1813.8,1813.3,0.84921]
[1680510553674,0.0234809,1813.7,1813.3,0.84921]
[1680510553970,0.32820572,1813.7,1813.3,0.84921]
[1680510554273,0.23,1813.6,1813.3,0.27573]
[1680510554769,0.32820572,1813.7,1813.3,0.27573]
[1680510555353,0.32820572,1813.7,1813.3,0.82721]
[1680510556671,0.32820572,1813.7,1813.3,0.84921]
[1680510557233,0.0234809,1813.7,1813.3,0.84921]
[1680510558047,2.81124818,1813.7,1813.3,0.022]
[1680510558238,2.81124818,1813.7,1813.2,0.27574]
[1680510558438,4.93924818,1813.7,1813.2,0.29774]
[1680510558670,0.23,1813.6,1813.2,0.29774]
[1680510558873,0.74752482,1813.6,1813.2,0.29774]
[1680510559068,2.78776728,1813.5,1813.1,0.022]
[1680510559270,2.78776728,1813.5,1813.1,0.29776]
[1680510559437,2.78776728,1813.5,1813.1,0.8273]
[1680510559639,0.52552482,1813.6,1813.1,0.8493]
[1680510559835,2.13,1813.7,1813.1,0.8273]
[1680510560075,4.92176728,1813.7,1813.1,0.8493]
[1680510561480,0.006,1813.7,1813.1,0.8493]
[1680510561644,0.23,1813.7,1813.1,0.8493]
[1680510563077,0.008,1813.8,1813.2,0.022]
[1680510563247,2.22127984,1813.9,1813.3,1.93008]
[1680510563448,0.13676074,1813.9,1813.3,1.93008]
[1680510563774,0.13676074,1813.9,1813.4,0.022]
[1680510563952,0.13676074,1813.9,1813.5,0.2757]
[1680510564148,0.67443682,1813.9,1813.5,0.82711]
[1680510565446,0.13676074,1813.9,1813.5,0.82711]
[1680510566052,0.13076074,1813.9,1813.5,0.82711]
[1680510566254,0.13076074,1813.9,1813.5,0.84911]
[1680510566873,0.13076074,1813.9,1813.6,0.022]
[1680510567075,0.13076074,1813.9,1813.6,0.27568]
[1680510567393,0.12782792,1813.9,1813.6,0.27568]
[1680510567790,0.12782792,1813.9,1813.6,0.84906]
[1680510568299,0.12782792,1813.9,1813.6,0.82706]
[1680510568808,2.9155952,1813.9,1813.6,0.27568]
[1680510568959,0.52155952,1813.8,1813.6,0.27568]
[1680510569298,0.52155952,1813.8,1813.6,0.29768]
[1680510569463,0.52155952,1813.8,1813.6,0.022]
[1680510569667,3.3093268,1813.8,1813.5,0.022]
[1680510569963,0.33093268,1813.7,1813.4,0.022]